Cogmind - Beta 14 @@@ ROGUE MODE // 2024.10.07 @ 10:46:51 Player: Rachel.wav Result: Self-destructed Performance ------------- Evolutions (1) 500 Regions Visited (2) 400 Robots Destroyed (11) 55 Value Destroyed (306) 306 Prototype IDs (0) 0 Alien Tech Used (0) 0 Bonus (0) 0 TOTAL SCORE: 1261 Bonus ------- None Cogmind --------- Core Integrity 256/400 Matter 300/300 Energy 265/265 System Corruption 0% Temperature Cool (18) Movement Rolling (235) Ox9 Location -9/Materials Parts ------- > --- POWER (1) -------- Improved Ion Engine > --- PROPULSION (2) --- Compact Wheel > --- UTILITY (4) ------ Cargo Storage Unit Targeting Computer Light Armor Plating > --- WEAPON (2) ------- Beam Rifle Light Assault Rifle > --- INVENTORY (30) --- Ion Engine Light Ion Engine Small Laser Light Assault Rifle Grenade Launcher Peak State ------------ > --- POWER ------------ Improved Ion Engine > --- PROPULSION ------- Wheel Compact Wheel > --- UTILITY ---------- Cargo Storage Unit Visual Processing Unit Targeting Computer > --- WEAPON ----------- Beam Rifle Light Assault Rifle > --- INVENTORY -------- Ion Engine Light Ion Engine Small Laser Light Assault Rifle Grenade Launcher [Rating: 12] Favorites ----------- Power Light Ion Engine Engine Light Ion Engine Propulsion Compact Wheel Leg Aluminum Leg Wheel Compact Wheel Utility Targeting Computer Device Heat Sink Storage Cargo Storage Unit Processor Targeting Computer Protection Light Armor Plating Weapon Light Assault Rifle Energy Gun Beam Rifle Ballistic Gun Light Assault Rifle Build | -11 -10 -9 ------- Run | Yrd Mat Mat Slots Evolved 2 | . . 2 Power . | . . . Propulsion . | . . . Utility 2 | . . 2 Weapon . | . . . Parts Attached 22 | 6 2 14 Power 3 | 1 . 2 Engine 3 | 1 . 2 Core . | . . . Reactor . | . . . Propulsion 3 | 2 . 1 Treads . | . . . Leg 1 | 1 . . Wheel 2 | 1 . 1 Hover . | . . . Flight . | . . . Utility 12 | 1 2 9 Device 1 | . . 1 Storage 6 | 1 1 4 Processor 2 | . 1 1 Hackware . | . . . Protection 3 | . . 3 Artifact . | . . . Weapon 4 | 2 . 2 Energy Gun 2 | 1 . 1 Energy Cannon . | . . . Ballistic Gun 2 | 1 . 1 Ballistic Cannon . | . . . Launcher . | . . . Special Weapon . | . . . Impact Weapon . | . . . Slashing Weapon . | . . . Piercing Weapon . | . . . Special Melee Weapon . | . . . Unidentified Prototypes . | . . . Parts Lost 3 | . . 3 Power . | . . . Propulsion 2 | . . 2 Utility 1 | . . 1 Weapon . | . . . Highest Loss Streak 2 | . . 2 To Critical Strikes . | . . . Average Slot Usage (%) 85 | . 93 82 Engine 11 | . 14 11 Leg 6 | . 14 3 Wheel 14 | . 14 14 Storage 11 | . 14 11 Processor 10 | . 8 11 Protection 6 | . . 8 Energy Gun 11 | . 14 11 Ballistic Gun 11 | . 14 11 Peak Build Rating 12 | 6 7 12 Average Rating 8 | 3 6 9 On Entrance 4 | . 6 7 Naked Turns . | . . . Heaviest Build 154 | 10 45 154 Greatest Support 26 | 16 16 26 Greatest Overweight (x) 9 | . 2 9 Average Overweight (x) 2 | . . 4 Largest Inventory Capacity 30 | 8 20 30 Average Capacity 20 | 7 9 25 Most Carried 5 | 3 3 5 Average Carried 3 | 1 2 4 Final Capacity 30 | 8 20 30 Final Carried 5 | 2 3 5 Class Distribution -------------------- 62% | Mutant 37% | Hauler-Mutant Dominant Class ---------------- Mutant | -10/Materials Hauler-Mutant | -9/Materials Resources | -11 -10 -9 ----------- Run | Yrd Mat Mat Matter Collected 441 | 260 15 166 Remotely . | . . . Salvage Created 475 | . 95 380 Parts 28 | . 5 23 Haulers Intercepted . | . . . Recyclers Shooed . | . . . Parts Field Recycled . | . . . Retrieved Matter . | . . . Parts Self-Destructed . | . . . Prevented . | . . . Kills | -11 -10 -9 ------- Run | Yrd Mat Mat Combat Hostiles Destroyed 8 | . 2 6 Guns 8 | . 2 6 Classes Destroyed 5 | . 1 4 Recycler 1 | . . 1 Watcher 2 | . . 2 Swarmer 2 | . . 2 Grunt 2 | . 2 . Sentry 4 | . . 4 Best Kill Streak 3 | . 2 3 Combat Bots Only 2 | . 2 2 Max Kills in Single Turn 1 | . 1 1 Gunslinging . | . . . Exploded . | . . . Melee . | . . . Uniques/NPCs Destroyed . | . . . Combat | -11 -10 -9 -------- Run | Yrd Mat Mat Hostile Shots Fired 54 | . 5 49 Missed 9 | . . 9 Damage Taken 553 | . 51 502 Core 144 | . . 144 Absorbed by Shields . | . . . Core Remaining (%) 100 | 100 100 . Volleys Fired 36 | . 5 31 Largest 2 | . 2 2 Hottest 76 | . 60 76 Shots Fired 72 | . 10 62 Gun 72 | . 10 62 Cannon . | . . . Launcher . | . . . Special . | . . . Kinetic 36 | . 5 31 Thermal 36 | . 5 31 Explosive . | . . . Electromagnetic . | . . . Robot Hit Streak 25 | . 3 25 Robot Miss Streak 5 | . 2 5 Penetration Max . | . . . Secondary Targets 1 | . . 1 Max Gunslinging Chain 1 | . . 1 Shots Hit Robots 49 | . 6 43 Core Hits 18 | . 4 14 Critical Kills 1 | . . 1 Critical Parts Destroyed . | . . . Critical Strikes 3 | . . 3 Burn 2 | . . 2 Destroy 1 | . . 1 Melee Attacks . | . . . Impact . | . . . Slashing . | . . . Piercing . | . . . Sneak Attacks . | . . . Combat Hostiles . | . . . Follow-up Attacks . | . . . Damage Inflicted 578 | . 56 522 Guns 578 | . 56 522 Cannons . | . . . Explosions . | . . . Melee . | . . . Ramming . | . . . Kinetic 147 | . 15 132 Thermal 431 | . 41 390 Explosive . | . . . Electromagnetic . | . . . Impact . | . . . Slashing . | . . . Piercing . | . . . Highest Corruption . | . . . Average Corruption . | . . . Corruption Purged . | . . . Corruption Blocked . | . . . Overload Shots . | . . . Overflow Damage . | . . . Projectiles . | . . . Explosions . | . . . Melee . | . . . Knockbacks . | . . . Impact . | . . . Kinetic . | . . . Secondary . | . . . Self-Inflicted Damage . | . . . Shots . | . . . Rammed . | . . . Targets Rammed . | . . . Kicked . | . . . Crushed . | . . . Highest Temperature 179 | . 70 179 Average Temperature 56 | . 34 59 Received Heat Transfer 165 | . 30 135 Siege Activations . | . . . Robots Corrupted . | . . . Combat Hostiles . | . . . Parts Fried . | . . . Impact Corruptions . | . . . Robots Melted . | . . . Combat Hostiles . | . . . Parts Melted 1 | . . 1 Heat Transferred 1247 | . 100 1147 Parts Sabotaged . | . . . Parts Stolen . | . . . Parts Stripped . | . . . Power Chain Reactions . | . . . Alert | -11 -10 -9 ------- Run | Yrd Mat Mat Peak Influence 154 | . 65 154 Initial 27 | . . 27 Average 72 | . 30 95 Maximum Alert Level . | . . . Low Security (%) 100 | 100 100 100 Level 1 . | . . . Level 2 . | . . . Level 3 . | . . . Level 4 . | . . . Level 5 . | . . . High Security . | . . . Max Security . | . . . Squads Dispatched 1 | . 1 . Investigation . | . . . Extermination . | . . . Reinforcement 1 | . 1 . Assault . | . . . Garrison . | . . . Intercept . | . . . Searches Triggered . | . . . Construction Impeded . | . . . Haulers Reinforced . | . . . Active Scanning Responses . | . . . Cargo Convoy Interrupts . | . . . Stealth | -11 -10 -9 --------- Run | Yrd Mat Mat Distress Signals 1 | . . 1 Communications Jammed . | . . . Distress Signals . | . . . Times Spotted 17 | . 3 14 Peak Tracking Total 4 | . 2 4 Tactical Retreats 1 | . . 1 Traps | -11 -10 -9 ------- Run | Yrd Mat Mat Traps Triggered . | . . . Indirectly . | . . . Trap Hack Attempts . | . . . Triggered . | . . . Disarmed . | . . . Reprogrammed . | . . . Reused . | . . . Traps Extracted . | . . . Installed . | . . . Triggered . | . . . Machines | -11 -10 -9 ---------- Run | Yrd Mat Mat Machines Disabled . | . . . Max in Single Turn . | . . . Machines Repaired . | . . . Machines Dismantled . | . . . Machines Sabotaged . | . . . Overloaded Fab Kills . | . . . Hacking | -11 -10 -9 --------- Run | Yrd Mat Mat Machines Accessed . | . . . Terminals . | . . . Fabricators . | . . . Repair Stations . | . . . Recycling Units . | . . . Scanalyzers . | . . . Garrison Access . | . . . Total Hacks . | . . . Successful . | . . . Failed . | . . . Catastrophic . | . . . Database Lockouts . | . . . Manual . | . . . Terminals . | . . . Fabricators . | . . . Repair Stations . | . . . Recycling Units . | . . . Scanalyzers . | . . . Garrison Access . | . . . Terminal Hacks . | . . . Fabricator Hacks . | . . . Repair Station Hacks . | . . . Recycling Unit Hacks . | . . . Scanalyzer . | . . . Garrison Access Hacks . | . . . Unauthorized Hacks . | . . . Terminals . | . . . Fabricators . | . . . Repair Stations . | . . . Recycling Units . | . . . Scanalyzers . | . . . Garrison Access . | . . . Data Cores Recovered . | . . . Used . | . . . Hacking Detections . | . . . Full Trace Events . | . . . Feedback Events . | . . . Feedback Blocked . | . . . Robot Schematics Acquired . | . . . Robots Built . | . . . Authchips . | . . . Time . | . . . Total Robot Build Rating . | . . . Part Schematics Acquired . | . . . Parts Built . | . . . Authchips . | . . . Time . | . . . Total Part Build Rating . | . . . Parts Repaired . | . . . Time . | . . . Parts Recycled . | . . . Recycled Matter . | . . . Retrieved Matter . | . . . Retrieved Components . | . . . Parts Scanalyzed . | . . . Part Schematics Acquired . | . . . Parts Damaged . | . . . Bothacking | -11 -10 -9 ------------ Run | Yrd Mat Mat Used RIF Installer . | . . . Robots Hacked . | . . . Non-combat . | . . . Combat . | . . . Robot Hacks Applied . | . . . Relay Couplers Released . | . . . Fabnet Peak Effective % . | . . . Robots Rewired . | . . . Allies Hacked . | . . . Hacks Repelled . | . . . Allies | -11 -10 -9 -------- Run | Yrd Mat Mat Total Allies . | . . . Largest Group . | . . . Highest-Rated Group . | . . . Highest-Rated Ally . | . . . Total Orders . | . . . Ally Attacks . | . . . Total Damage . | . . . Kills . | . . . Allies Corrupted . | . . . Allies Melted . | . . . Intel | -11 -10 -9 ------- Run | Yrd Mat Mat Robot Analysis Total . | . . . Derelict Logs Recovered . | . . . Drone Launches . | . . . Drone Recoveries . | . . . Exploration | -11 -10 -9 ------------- Run | Yrd Mat Mat Turns Passed 781 | 53 194 534 Spaces Moved 432 | 47 155 230 Core 14 | 14 . . Treads . | . . . Legs . | . . . Wheels 418 | 33 155 230 Hover . | . . . Flight . | . . . Fastest Speed 50 | 50 100 100 Average Speed 136 | 85 103 169 Slowest Speed 235 | 100 130 235 Overloaded Moves . | . . . Propulsion Burnouts . | . . . Robots Hopped . | . . . Cave-ins Triggered . | . . . Exploration Rate (%) 14 | 3 27 12 Regions Visited 2 Branch Regions . Pre-discovered Areas . | . . . Known Exits Taken . | . . . Unknown Exits Taken 2 | 1 1 . Scrap Searched . | . . . Spaces Dug . | . . . Terrain Destroyed . | . . . Melee . | . . . Projectile . | . . . AOE . | . . . Terrain Rammed . | . . . Walls Destroyed . | . . . Machines Disabled . | . . . Actions | -11 -10 -9 --------- Run | Yrd Mat Mat Total 553 | 59 179 315 Wait 47 | . 16 31 Move 430 | 46 154 230 Hop . | . . . Pick Up 8 | 7 1 . Fast Attach 14 | 1 2 11 Attach 6 | 5 . 1 Detach 1 | . . 1 Swap 2 | . . 2 Drop 9 | . 1 8 Fire 36 | . 5 31 Melee . | . . . Ram . | . . . Kick . | . . . Crush . | . . . Escape Stasis . | . . . Rewire . | . . . Trap . | . . . Miscellaneous . | . . . Route ------- -11/Scrapyard -10/Materials -9/Materials History --------- Turn | Location | Event 22 | -11/Scrapyard | Discovered new exit (range 16) 54 | -11/Scrapyard | Entered Materials 195 | -10/Materials | Discovered new exit (range 16) 248 | -10/Materials | Entered another Materials area 248 | -9/Materials | Evolved 2 slots: Utility x2 305 | -9/Materials | Build established: Mutant 782 | -9/Materials | Self-destructed Last Messages --------------- 00688_ S-10 Pest destroyed. 00690_ K-01 Serf collects debris. 00692_ S-10 Pest destroyed. 00692_ Switching to secondary target: S-10 Pest. 00693_ K-01 Serf collects debris. 00701_ Acquired 55 matter. 00711_ S-10 Pest destroyed. 00712_ Acquired 2 matter. 00717_ Acquired 10 matter. 00742_ Acquired 3 matter. 00746_ W-16 Scout sends out distress signal. 00749_ W-16 Scout destroyed. 00754_ Acquired 2 matter. 00760_ Dropped Lgt. Armor Plating. 00761_ Acquired Visual Processing Unit. 00764_ Discarded Visual Processing Unit. 00765_ Acquired Lgt. Armor Plating. 00770_ Wheel destroyed. 00774_ Y-45 Defender destroyed. 00780_ Acquired 19 matter. Map ----- +----------------------------------------------------+ | ?????????????????????????????????????????????????? | | ????############?????????????????????????????????? | | ????# # #?????????????????????????????????? | | ????# # #?????????????????????????????????? | | ????# # !!= #?????????????????????????????????? | | ????# + !! #?????????????????????????????????? | | ????# # != #?????????????????????????????????? | | ????# # #?????????????????????????????????? | | ????# ########?????????????????????????????????? | | ##### #???##########???????????????????????????? | | # #???# !!! #???????????????????????????? | | """ # #???# !!! #???????????????????????????? | | """ + #???# !! #???????????????????????????? | | """ # #???# #???????????????????????????? | | """ # #???# #???????????????????????????? | | # #???# """ #???????????????????????????? | | ##### #???# """ #???????????????????????????? | | # #???# """ #???????????????????????????? | | "" # #???#| #######?????????????????????? | | ""S # ##########+### #?????????????????????? | | "" # #### #????????????????? | | + u #????????????????? | | # w% ######????????????????? | | # #####%########% #?????????????????????? | | = # #####+#####??## ! ##?????????????????????? | | ##### # =%% #???# %@#??????????????????????? | | ????# + #???# *!#??????????????????????? | | ????# # #???# #??????????????????????? | | ????# # #???#t #??????????????????????? | | ????# % ###########???# +??????????????????????? | | ?#####+#####??????????# # ?????????????????????? | | ?# #??????????###=# ?????????????????????? | | ?# #????????????#%#? ????????????????????? | | ?# """ """ #????????????#%#??????????????????????? | | ?# """ """ #???????????? * ??????????????????????? | | ?# """ """ #???????????? ??????????????????????? | | ## #???????????? ??????????????????????? | | # #???????????? ??????????????????????? | | ## #???????????? ?????????????????????? | | ?###########????????????#+#??????????????????????? | | ?????????????????????????????????????????????????? | | ?????????????????????????????????????????????????? | | ?????????????????????????????????????????????????? | | ?????????????????????????????????????????????????? | | ?????????????????????????????????????????????????? | | ?????????????????????????????????????????????????? | | ?????????????????????????????????????????????????? | | ?????????????????????????????????????????????????? | | ?????????????????????????????????????????????????? | | ?????????????????????????????????????????????????? | +----------------------------------------------------+ Best States ------------- Heat Dissipation 38 Energy Generation 12 Energy Capacity 265 Matter Stores 300 Matter Capacity 300 Sight Range 16 Terrain Scan Density 10 Armor Coverage 150 Evasion (%) 50 Targeting Accuracy 5 Item Schematics ----------------- None Robot Schematics ------------------ None Fabricated ------------ Nothing Alien Tech Used ----------------- None Achievements -------------- Tank Challenges ------------ None Game ------ Seed PhaseRestorationBeam Manual? 0 Play Time 00:08:19 Cumulative 3.9 hours Start 2024.10.06 @ 00:16:31 End 2024.10.07 @ 10:46:51 Sessions 3 Manual Loads 0 Difficulty Rogue Special Mode None Game No. 7 Rogue 7 Adventurer 0 Explorer 0 Win Type - Total 0 Types 0/0/0/0/0/0/0/0/0 Lore% 2 Gallery% 10 Achievement% 10 Wizard Run 0 Options --------- Layout 1 ASCII 0 Keyboard 0 Movement Mouse Keybinds 0 Fullscreen 1 Font 24/Smallcaps Map View 50x35 Zoom Use 0% Tactical HUD 1 Map Filters NONE Filters NONE Steam 1 RUN: c5ecaf8d-ded6-4d01-90fd-528616b954bc